[Event "EYCC Open-U18 2019"]
[Site "Bratislava"]
[Date "2019.08.08"]
[Round "7.17"]
[White "Mitsis, Georgios"]
[Black "Hurdzan, Tomas"]
[Result "1/2-1/2"]
[ECO "D25"]
[WhiteElo "2399"]
[BlackElo "2231"]
[Annotator "NA"]
[PlyCount "83"]
[EventDate "2019.08.02"]
[EventType "swiss"]
[EventCountry "SVK"]
[SourceTitle "playchess.com"]
[Source "ChessBase"]
[SourceQuality "1"]
[TimeControl "40/5400+30:1800+30"]

1. d4 {[%emt 0:00:00]} d5 {[%emt 0:00:00]} 2. Nf3 {[%emt 0:00:00]} Nf6 {[%emt 0:00:00]} 3. c4 {[%emt 0:00:00]} dxc4 {[%emt 0:00:14]} 4. e3 {[%emt 0:00:03]} Bg4 {[%emt 0:00:32]} 5. Bxc4 {[%emt 0:00:24]} e6 {[%emt 0:00:22]} 6. Nc3 {[%emt 0:00:37]} Nbd7 {[%emt 0:00:52]} 7. O-O {[%emt 0:05:05]} Bb4 {[%emt 0:01:26]} 8. Qb3 {[%emt 0:10:00]} c5 {[%emt 0:16:22]} 9. dxc5 {[%emt 0:01:06]} Bxc5 {[%emt 0:03:39]} 10. Be2 {[%emt 0:08:59]} Qb6 {[%emt 0:06:50]} 11. Qxb6 {[%emt 0:06:17]} Bxb6 {[%emt 0:02:36]} 12. b3 {[%emt 0:00:52]} O-O {[%emt 0:01:16]} 13. Bb2 {[%emt 0:02:28]} Nc5 {[%emt 0:03:47]} 14. Ne5 {[%emt 0:02:05]} Bxe2 {[%emt 0:00:16]} 15. Nxe2 {[%emt 0:00:03]} Rfd8 {[%emt 0:01:52]} 16. Nc4 {[%emt 0:00:37]} Bc7 {[%emt 0:07:19]} 17. Bd4 {[%emt 0:08:44]} Ncd7 {[%emt 0:10:08]} 18. Rac1 {[%emt 0:00:32]} a6 {[%emt 0:02:28]} 19. f3 {[%emt 0:00:17]} b5 {[%emt 0:00:34]} 20. Nb2 {[%emt 0:02:27]} Rac8 {[%emt 0:01:18]} 21. Nd3 {[%emt 0:04:00]} Bd6 {[%emt 0:06:31]} 22. Rxc8 {[%emt 0:10:23]} Rxc8 {[%emt 0:00:03]} 23. Rc1 {[%emt 0:00:09]} Rxc1+ {[%emt 0:00:18]} 24. Nexc1 {[%emt 0:00:05]} Nd5 {[%emt 0:01:56]} 25. e4 {[%emt 0:00:19]} Nb4 {[%emt 0:05:24]} 26. Nxb4 {[%emt 0:00:11]} Bxb4 {[%emt 0:00:02]} 27. Nd3 {[%emt 0:00:08]} Be7 {[%emt 0:01:14]} 28. Kf2 {[%emt 0:00:13]} f6 {[%emt 0:00:29]} 29. Ke2 {[%emt 0:00:50]} Kf7 {[%emt 0:00:05]} 30. Kd2 {[%emt 0:00:08]} Nb8 {[%emt 0:07:21]} 31. Kc3 {[%emt 0:02:39]} Nc6 {[%emt 0:00:06]} 32. Bc5 {[%emt 0:04:37]} Bd8 {[%emt 0:00:03]} 33. Kd2 {[%emt 0:05:35]} Bc7 {[%emt 0:00:28]} 34. g3 {[%emt 0:00:35]} g5 {[%emt 0:02:34]} 35. Ke3 {[%emt 0:01:13]} Kg6 {[%emt 0:02:06]} 36. Nc1 {[%emt 0:01:42]} Kf7 {[%emt 0:00:56]} 37. Ne2 {[%emt 0:00:07]} Ke8 {[%emt 0:01:51]} 38. Nc1 {[%emt 0:05:27]} Kf7 {[%emt 0:00:34]} 39. Nd3 {[%emt 0:00:06]} Ke8 {[%emt 0:00:35]} 40. Ke2 {[%emt 0:00:00]} Kf7 {[%emt 0:00:00]} 41. Ke3 {[%emt 0:02:13]} Ke8 {[%emt 0:02:09]} 42. Ke2 {[%emt 0:00:10]} 1/2-1/2

[Event "EYCC Open-U18 2019"]
[Site "Bratislava"]
[Date "2019.08.08"]
[Round "7.18"]
[White "Zabolotnov, Evgeny"]
[Black "Baenziger, Fabian"]
[Result "0-1"]
[ECO "E91"]
[WhiteElo "2284"]
[BlackElo "2352"]
[Annotator "NA"]
[PlyCount "70"]
[EventDate "2019.08.02"]
[EventType "swiss"]
[EventCountry "SVK"]
[SourceTitle "playchess.com"]
[Source "ChessBase"]
[SourceQuality "1"]
[TimeControl "40/5400+30:1800+30"]

1. d4 {[%emt 0:00:00]} Nf6 {[%emt 0:00:27]} 2. c4 {[%emt 0:00:00]} g6 {[%emt 0:00:43]} 3. Nc3 {[%emt 0:00:00]} Bg7 {[%emt 0:00:05]} 4. e4 {[%emt 0:00:00]} d6 {[%emt 0:00:05]} 5. Nf3 {[%emt 0:00:14]} O-O {[%emt 0:00:23]} 6. Be2 {[%emt 0:00:04]} Na6 {[%emt 0:01:33]} 7. O-O {[%emt 0:00:19]} e5 {[%emt 0:00:03]} 8. Be3 {[%emt 0:02:42]} Ng4 {[%emt 0:01:26]} 9. Bg5 {[%emt 0:00:24]} Qe8 {[%emt 0:00:05]} 10. d5 {[%emt 0:01:34]} h6 {[%emt 0:11:35]} 11. Bh4 {[%emt 0:00:06]} Nf6 {[%emt 0:02:49]} 12. Nd2 {[%emt 0:03:20]} Nh7 {[%emt 0:01:25]} 13. a3 {[%emt 0:01:20]} h5 {[%emt 0:03:56]} 14. f3 {[%emt 0:02:03]} Bh6 {[%emt 0:07:05]} 15. b4 {[%emt 0:07:15]} f5 {[%emt 0:00:56]} 16. c5 {[%emt 0:12:36]} Be3+ {[%emt 0:21:39]} 17. Bf2 {[%emt 0:00:51]} Bxf2+ {[%emt 0:00:23]} 18. Rxf2 {[%emt 0:00:02]} f4 {[%emt 0:00:24]} 19. Rc1 {[%emt 0:20:22]} g5 {[%emt 0:02:11]} 20. cxd6 {[%emt 0:02:23]} cxd6 {[%emt 0:00:13]} 21. Nb5 {[%emt 0:00:56]} Rf6 {[%emt 0:00:36]} 22. Nc7 {[%emt 0:07:02]} Nxc7 {[%emt 0:00:38]} 23. Rxc7 {[%emt 0:00:01]} Rg6 {[%emt 0:00:51]} 24. Qc2 {[%emt 0:11:18]} g4 {[%emt 0:02:50]} 25. Rf1 {[%emt 0:01:24]} Kh8 {[%emt 0:04:46]} 26. Rc1 {[%emt 0:01:28]} Rg8 {[%emt 0:00:20]} 27. Qc3 {[%emt 0:06:31]} Qd8 {[%emt 0:03:05]} 28. Bf1 {[%emt 0:17:08]} Ng5 {[%emt 0:01:59]} 29. Kh1 {[%emt 0:00:17]} Qf6 {[%emt 0:03:37]} 30. Qd3 {[%emt 0:01:12]} g3 {[%emt 0:08:17]} 31. h3 {[%emt 0:00:36]} Nxh3 {[%emt 0:00:34]} 32. gxh3 {[%emt 0:00:16]} Bxh3 {[%emt 0:00:47]} 33. Kg1 {[%emt 0:02:01]} g2 {[%emt 0:01:34]} 34. Be2 {[%emt 0:00:05]} Qh4 {[%emt 0:00:04]} 35. Rf7 {[%emt 0:01:06]} Be6 {[%emt 0:00:19]} 0-1

[Event "EYCC Open-U18 2019"]
[Site "Bratislava"]
[Date "2019.08.08"]
[Round "7.19"]
[White "Brinovec, David"]
[Black "Fus, Jakub"]
[Result "1/2-1/2"]
[ECO "B14"]
[WhiteElo "2205"]
[BlackElo "2341"]
[Annotator "NA"]
[PlyCount "92"]
[EventDate "2019.08.02"]
[EventType "swiss"]
[EventCountry "SVK"]
[SourceTitle "playchess.com"]
[Source "ChessBase"]
[SourceQuality "1"]
[TimeControl "40/5400+30:1800+30"]

1. e4 {[%emt 0:00:00]} c6 {[%emt 0:00:00]} 2. d4 {[%emt 0:00:00]} d5 {[%emt 0:00:04]} 3. exd5 {[%emt 0:00:03]} cxd5 {[%emt 0:00:12]} 4. c4 {[%emt 0:00:12]} Nf6 {[%emt 0:00:23]} 5. Nc3 {[%emt 0:00:09]} e6 {[%emt 0:00:16]} 6. Nf3 {[%emt 0:00:49]} Bb4 {[%emt 0:00:18]} 7. Bd3 {[%emt 0:04:10]} dxc4 {[%emt 0:01:33]} 8. Bxc4 {[%emt 0:00:11]} O-O {[%emt 0:00:31]} 9. O-O {[%emt 0:00:48]} b6 {[%emt 0:04:16]} 10. Qe2 {[%emt 0:01:06]} Bb7 {[%emt 0:00:59]} 11. Bg5 {[%emt 0:01:52]} Bxc3 {[%emt 0:00:32]} 12. bxc3 {[%emt 0:00:06]} Nbd7 {[%emt 0:01:02]} 13. Rac1 {[%emt 0:09:46]} Qc7 {[%emt 0:01:56]} 14. Bd3 {[%emt 0:07:24]} Rac8 {[%emt 0:09:28]} 15. c4 {[%emt 0:10:31]} Rfe8 {[%emt 0:03:48]} 16. Ne5 {[%emt 0:02:30]} Nxe5 {[%emt 0:10:00]} 17. dxe5 {[%emt 0:00:37]} Qc6 {[%emt 0:01:35]} 18. f3 {[%emt 0:03:27]} Nd7 {[%emt 0:01:04]} 19. c5 {[%emt 0:11:20]} bxc5 {[%emt 0:05:04]} 20. Rfd1 {[%emt 0:01:13]} Qc7 {[%emt 0:05:35]} 21. f4 {[%emt 0:05:03]} Bd5 {[%emt 0:07:15]} 22. Bxh7+ {[%emt 0:09:07]} Kxh7 {[%emt 0:02:25]} 23. Qh5+ {[%emt 0:00:21]} Kg8 {[%emt 0:00:04]} 24. Rc3 {[%emt 0:00:12]} f6 {[%emt 0:04:25]} 25. exf6 {[%emt 0:02:09]} Nxf6 {[%emt 0:00:54]} 26. Bxf6 {[%emt 0:00:38]} Qf7 {[%emt 0:09:29]} 27. Qxf7+ {[%emt 0:01:27]} Kxf7 {[%emt 0:00:05]} 28. Be5 {[%emt 0:01:10]} Re7 {[%emt 0:04:21]} 29. Rg3 {[%emt 0:04:48]} Rg8 {[%emt 0:07:36]} 30. Bd6 {[%emt 0:08:40]} Rb7 {[%emt 0:03:30]} 31. Bxc5 {[%emt 0:00:47]} Bxa2 {[%emt 0:03:22]} 32. Ra1 {[%emt 0:00:52]} Bd5 {[%emt 0:03:08]} 33. Rxa7 {[%emt 0:01:55]} Rxa7 {[%emt 0:00:07]} 34. Bxa7 {[%emt 0:00:01]} Rc8 {[%emt 0:00:12]} 35. h4 {[%emt 0:01:20]} g6 {[%emt 0:00:08]} 36. Bd4 {[%emt 0:00:40]} Rc2 {[%emt 0:00:17]} 37. Kh2 {[%emt 0:00:35]} Be4 {[%emt 0:00:51]} 38. Be5 {[%emt 0:00:47]} Ra2 {[%emt 0:00:08]} 39. Rg5 {[%emt 0:01:06]} Rc2 {[%emt 0:01:40]} 40. Kh3 {[%emt 0:00:00]} Rc1 {[%emt 0:00:00]} 41. g4 {[%emt 0:04:18]} Rg1 {[%emt 0:16:35]} 42. h5 {[%emt 0:02:33]} gxh5 {[%emt 0:00:27]} 43. gxh5 {[%emt 0:00:19]} Rxg5 {[%emt 0:00:14]} 44. fxg5 {[%emt 0:00:04]} Bf5+ {[%emt 0:00:02]} 45. Kh4 {[%emt 0:00:09]} Bb1 {[%emt 0:00:04]} 46. g6+ {[%emt 0:00:05]} Bxg6 {[%emt 0:00:04]} 1/2-1/2

[Event "EYCC Open-U18 2019"]
[Site "Bratislava"]
[Date "2019.08.08"]
[Round "7.20"]
[White "Parkhov, Yair"]
[Black "Santryan, Davit"]
[Result "1-0"]
[ECO "B06"]
[WhiteElo "2354"]
[BlackElo "2167"]
[Annotator "NA"]
[PlyCount "71"]
[EventDate "2019.08.02"]
[EventType "swiss"]
[EventCountry "SVK"]
[SourceTitle "playchess.com"]
[Source "ChessBase"]
[SourceQuality "1"]
[TimeControl "40/5400+30:1800+30"]

1. d4 {[%emt 0:00:00]} g6 {[%emt 0:00:51]} 2. e4 {[%emt 0:00:27]} Bg7 {[%emt 0:01:03]} 3. Nc3 {[%emt 0:06:57]} d6 {[%emt 0:01:21]} 4. g3 {[%emt 0:04:23]} e5 {[%emt 0:03:28]} 5. Be3 {[%emt 0:02:36]} Nc6 {[%emt 0:01:30]} 6. dxe5 {[%emt 0:00:59]} dxe5 {[%emt 0:01:04]} 7. Qxd8+ {[%emt 0:00:53]} Nxd8 {[%emt 0:04:12]} 8. Nb5 {[%emt 0:02:59]} Ne6 {[%emt 0:05:53]} 9. Nxa7 {[%emt 0:08:03]} Bd7 {[%emt 0:12:38]} 10. Nb5 {[%emt 0:02:49]} f5 {[%emt 0:05:38]} 11. Nf3 {[%emt 0:14:46]} h6 {[%emt 0:11:10]} 12. Nh4 {[%emt 0:11:47]} Ne7 {[%emt 0:08:28]} 13. Nxg6 {[%emt 0:10:19]} Nxg6 {[%emt 0:25:16]} 14. exf5 {[%emt 0:00:22]} Ra5 {[%emt 0:02:47]} 15. a4 {[%emt 0:06:19]} Bc6 {[%emt 0:07:50]} 16. Rg1 {[%emt 0:01:28]} Ng5 {[%emt 0:00:46]} 17. Bxg5 {[%emt 0:00:26]} hxg5 {[%emt 0:00:13]} 18. fxg6 {[%emt 0:00:12]} e4 {[%emt 0:01:50]} 19. c3 {[%emt 0:03:02]} Bxb5 {[%emt 0:00:36]} 20. Bxb5+ {[%emt 0:00:13]} c6 {[%emt 0:00:01]} 21. Bc4 {[%emt 0:00:33]} Rxh2 {[%emt 0:00:09]} 22. Ke2 {[%emt 0:03:08]} e3 {[%emt 0:02:53]} 23. Bf7+ {[%emt 0:01:51]} Kf8 {[%emt 0:00:32]} 24. Kxe3 {[%emt 0:01:50]} Re5+ {[%emt 0:00:04]} 25. Kf3 {[%emt 0:05:40]} Rf5+ {[%emt 0:00:37]} 26. Kg4 {[%emt 0:00:08]} Rhxf2 {[%emt 0:01:01]} 27. Rge1 {[%emt 0:04:02]} Re5 {[%emt 0:00:18]} 28. Rxe5 {[%emt 0:00:41]} Bxe5 {[%emt 0:00:01]} 29. Re1 {[%emt 0:01:05]} Bf6 {[%emt 0:00:06]} 30. b3 {[%emt 0:01:39]} Rd2 {[%emt 0:01:16]} 31. Re8+ {[%emt 0:01:57]} Kg7 {[%emt 0:00:02]} 32. Rb8 {[%emt 0:00:19]} Rd7 {[%emt 0:00:24]} 33. Kf5 {[%emt 0:01:07]} Bxc3 {[%emt 0:00:25]} 34. Kxg5 {[%emt 0:00:15]} Bf6+ {[%emt 0:01:08]} 35. Kf5 {[%emt 0:00:09]} Bd4 {[%emt 0:00:36]} 36. g4 {[%emt 0:00:26]} 1-0

[Event "EYCC Open-U18 2019"]
[Site "Bratislava"]
[Date "2019.08.08"]
[Round "7.21"]
[White "Garayev, Kanan"]
[Black "Mirri, Pietro"]
[Result "1-0"]
[ECO "D02"]
[WhiteElo "2351"]
[BlackElo "2194"]
[Annotator "NA"]
[PlyCount "63"]
[EventDate "2019.08.02"]
[EventType "swiss"]
[EventCountry "SVK"]
[SourceTitle "playchess.com"]
[Source "ChessBase"]
[SourceQuality "1"]
[TimeControl "40/5400+30:1800+30"]

1. d4 {[%emt 0:00:00]} d5 {[%emt 0:00:00]} 2. Nf3 {[%emt 0:00:00]} Nf6 {[%emt 0:00:00]} 3. Bf4 {[%emt 0:00:00]} e6 {[%emt 0:00:00]} 4. e3 {[%emt 0:00:00]} c5 {[%emt 0:00:39]} 5. c3 {[%emt 0:00:03]} Nc6 {[%emt 0:00:59]} 6. Nbd2 {[%emt 0:00:08]} Bd6 {[%emt 0:01:33]} 7. Bg3 {[%emt 0:00:07]} O-O {[%emt 0:00:39]} 8. Bb5 {[%emt 0:00:03]} a6 {[%emt 0:05:13]} 9. Bxc6 {[%emt 0:00:15]} bxc6 {[%emt 0:00:05]} 10. Qa4 {[%emt 0:01:26]} Bxg3 {[%emt 0:07:20]} 11. hxg3 {[%emt 0:00:16]} Qb6 {[%emt 0:02:57]} 12. Qa3 {[%emt 0:03:14]} Rb8 {[%emt 0:04:50]} 13. Rb1 {[%emt 0:02:59]} Nd7 {[%emt 0:05:53]} 14. O-O {[%emt 0:04:28]} Re8 {[%emt 0:02:23]} 15. Nb3 {[%emt 0:02:49]} c4 {[%emt 0:06:20]} 16. Nbd2 {[%emt 0:00:35]} Qc7 {[%emt 0:02:25]} 17. b3 {[%emt 0:01:45]} cxb3 {[%emt 0:01:02]} 18. Nxb3 {[%emt 0:01:26]} f6 {[%emt 0:10:58]} 19. Rfc1 {[%emt 0:03:17]} Nb6 {[%emt 0:09:04]} 20. Nfd2 {[%emt 0:04:20]} e5 {[%emt 0:02:12]} 21. Nc5 {[%emt 0:00:18]} Qa7 {[%emt 0:02:50]} 22. Qa5 {[%emt 0:05:32]} Bf5 {[%emt 0:07:06]} 23. Rb4 {[%emt 0:01:54]} Nd7 {[%emt 0:03:50]} 24. Nxd7 {[%emt 0:01:39]} Qxd7 {[%emt 0:01:51]} 25. Nb3 {[%emt 0:02:16]} Be4 {[%emt 0:09:41]} 26. Qxa6 {[%emt 0:04:37]} Ra8 {[%emt 0:03:29]} 27. Qe2 {[%emt 0:00:03]} exd4 {[%emt 0:02:05]} 28. cxd4 {[%emt 0:00:36]} Ra3 {[%emt 0:00:08]} 29. Nc5 {[%emt 0:00:47]} Qa7 {[%emt 0:00:05]} 30. Rb7 {[%emt 0:00:56]} Qa8 {[%emt 0:03:53]} 31. Qg4 {[%emt 0:00:28]} Bg6 {[%emt 0:00:35]} 32. Qd7 {[%emt 0:00:07]} 1-0

[Event "EYCC Open-U18 2019"]
[Site "Bratislava"]
[Date "2019.08.08"]
[Round "7.22"]
[White "Bekasovs, Rihards"]
[Black "Tisaj, Domen"]
[Result "0-1"]
[ECO "A81"]
[WhiteElo "2144"]
[BlackElo "2232"]
[Annotator "NA"]
[PlyCount "100"]
[EventDate "2019.08.02"]
[EventType "swiss"]
[EventCountry "SVK"]
[SourceTitle "playchess.com"]
[Source "ChessBase"]
[SourceQuality "1"]
[TimeControl "40/5400+30:1800+30"]

1. d4 {[%emt 0:00:00]} f5 {[%emt 0:00:00]} 2. g3 {[%emt 0:00:00]} Nf6 {[%emt 0:00:00]} 3. Bg2 {[%emt 0:00:00]} e6 {[%emt 0:00:31]} 4. Nf3 {[%emt 0:00:04]} d5 {[%emt 0:00:25]} 5. c4 {[%emt 0:00:11]} c6 {[%emt 0:00:27]} 6. Qc2 {[%emt 0:00:31]} Bd6 {[%emt 0:00:23]} 7. Bf4 {[%emt 0:01:49]} O-O {[%emt 0:00:21]} 8. Nbd2 {[%emt 0:01:41]} Bxf4 {[%emt 0:01:06]} 9. gxf4 {[%emt 0:00:06]} Nbd7 {[%emt 0:00:16]} 10. e3 {[%emt 0:01:51]} h6 {[%emt 0:01:03]} 11. O-O-O {[%emt 0:20:40]} Qe7 {[%emt 0:21:58]} 12. h4 {[%emt 0:09:04]} b6 {[%emt 0:05:38]} 13. Ne5 {[%emt 0:04:13]} Nxe5 {[%emt 0:00:29]} 14. dxe5 {[%emt 0:03:40]} Ng4 {[%emt 0:02:25]} 15. cxd5 {[%emt 0:01:42]} cxd5 {[%emt 0:00:41]} 16. Nb3 {[%emt 0:03:54]} Bd7 {[%emt 0:01:51]} 17. Qd2 {[%emt 0:00:25]} Ba4 {[%emt 0:01:14]} 18. f3 {[%emt 0:05:10]} Bxb3 {[%emt 0:00:43]} 19. axb3 {[%emt 0:00:07]} Qc5+ {[%emt 0:06:33]} 20. Kb1 {[%emt 0:00:10]} Qxe3 {[%emt 0:00:25]} 21. fxg4 {[%emt 0:00:13]} Qxd2 {[%emt 0:00:04]} 22. Rxd2 {[%emt 0:00:06]} fxg4 {[%emt 0:00:33]} 23. Rf1 {[%emt 0:11:25]} Rae8 {[%emt 0:02:50]} 24. f5 {[%emt 0:14:38]} Rxf5 {[%emt 0:01:08]} 25. Rxf5 {[%emt 0:00:02]} exf5 {[%emt 0:00:09]} 26. Bxd5+ {[%emt 0:00:48]} Kf8 {[%emt 0:00:14]} 27. Re2 {[%emt 0:01:40]} Ke7 {[%emt 0:00:32]} 28. Rc2 {[%emt 0:05:02]} f4 {[%emt 0:02:35]} 29. h5 {[%emt 0:04:32]} f3 {[%emt 0:02:43]} 30. Rc7+ {[%emt 0:03:30]} Kd8 {[%emt 0:00:22]} 31. Rxg7 {[%emt 0:00:00]} Rxe5 {[%emt 0:00:13]} 32. Bc4 {[%emt 0:00:42]} Re1+ {[%emt 0:21:01]} 33. Kc2 {[%emt 0:00:19]} Rg1 {[%emt 0:00:05]} 34. Rf7 {[%emt 0:02:22]} Rg2+ {[%emt 0:01:11]} 35. Kd3 {[%emt 0:01:31]} f2 {[%emt 0:06:44]} 36. Bd5 {[%emt 0:01:12]} Rh2 {[%emt 0:00:02]} 37. Ke2 {[%emt 0:00:56]} Rxh5 {[%emt 0:00:27]} 38. Bg2 {[%emt 0:01:17]} g3 {[%emt 0:00:06]} 39. Kf3 {[%emt 0:00:43]} Rg5 {[%emt 0:01:02]} 40. Rf6 {[%emt 0:00:00]} h5 {[%emt 0:00:00]} 41. Rf4 {[%emt 0:04:33]} Rg7 {[%emt 0:01:15]} 42. Rf5 {[%emt 0:02:01]} h4 {[%emt 0:03:15]} 43. Rf4 {[%emt 0:01:34]} Rd7 {[%emt 0:01:37]} 44. Kg4 {[%emt 0:02:10]} Rd2 {[%emt 0:02:32]} 45. Kh3 {[%emt 0:01:53]} Rxb2 {[%emt 0:00:25]} 46. Rxh4 {[%emt 0:03:04]} Rxb3 {[%emt 0:00:35]} 47. Rg4 {[%emt 0:01:16]} a5 {[%emt 0:04:31]} 48. Rxg3 {[%emt 0:00:46]} a4 {[%emt 0:00:20]} 49. Kg4 {[%emt 0:01:34]} b5 {[%emt 0:01:03]} 50. Kf4 {[%emt 0:04:54]} Rxg3 {[%emt 0:00:15]} 0-1

[Event "EYCC Open-U18 2019"]
[Site "Bratislava"]
[Date "2019.08.08"]
[Round "7.23"]
[White "Iliaguev, Nisim"]
[Black "Triantos, Konstantinos"]
[Result "1-0"]
[ECO "E10"]
[WhiteElo "2357"]
[BlackElo "2129"]
[Annotator "NA"]
[PlyCount "89"]
[EventDate "2019.08.02"]
[EventType "swiss"]
[EventCountry "SVK"]
[SourceTitle "playchess.com"]
[Source "ChessBase"]
[SourceQuality "1"]
[TimeControl "40/5400+30:1800+30"]

1. d4 {[%emt 0:00:00]} Nf6 {[%emt 0:00:00]} 2. c4 {[%emt 0:00:00]} e6 {[%emt 0:00:00]} 3. Nf3 {[%emt 0:00:00]} c5 {[%emt 0:00:20]} 4. g3 {[%emt 0:01:59]} cxd4 {[%emt 0:04:12]} 5. Nxd4 {[%emt 0:01:31]} d5 {[%emt 0:00:18]} 6. Bg2 {[%emt 0:00:18]} e5 {[%emt 0:00:50]} 7. Nf3 {[%emt 0:00:17]} d4 {[%emt 0:00:11]} 8. O-O {[%emt 0:00:13]} Nc6 {[%emt 0:00:33]} 9. e3 {[%emt 0:00:08]} Be7 {[%emt 0:03:38]} 10. exd4 {[%emt 0:00:06]} exd4 {[%emt 0:00:06]} 11. Bf4 {[%emt 0:01:46]} O-O {[%emt 0:00:45]} 12. Ne5 {[%emt 0:00:49]} Qb6 {[%emt 0:00:20]} 13. Nxc6 {[%emt 0:03:48]} bxc6 {[%emt 0:00:19]} 14. Qb3 {[%emt 0:00:56]} Qa6 {[%emt 0:05:00]} 15. Nd2 {[%emt 0:06:22]} Be6 {[%emt 0:00:55]} 16. Be5 {[%emt 0:04:27]} Rfd8 {[%emt 0:03:50]} 17. Bxf6 {[%emt 0:00:58]} Bxf6 {[%emt 0:01:09]} 18. Qd3 {[%emt 0:00:06]} Rac8 {[%emt 0:12:26]} 19. f4 {[%emt 0:01:42]} g6 {[%emt 0:00:55]} 20. b3 {[%emt 0:00:37]} Qa5 {[%emt 0:01:36]} 21. Be4 {[%emt 0:12:37]} Bg4 {[%emt 0:09:52]} 22. a3 {[%emt 0:11:01]} Be2 {[%emt 0:08:29]} 23. Qxe2 {[%emt 0:00:17]} d3 {[%emt 0:00:02]} 24. Qg2 {[%emt 0:01:44]} Bd4+ {[%emt 0:05:30]} 25. Kh1 {[%emt 0:00:10]} Bxa1 {[%emt 0:00:03]} 26. Rxa1 {[%emt 0:00:03]} Qc3 {[%emt 0:02:03]} 27. Re1 {[%emt 0:04:56]} Re8 {[%emt 0:01:30]} 28. Qf2 {[%emt 0:05:10]} Re7 {[%emt 0:08:55]} 29. g4 {[%emt 0:02:11]} Rce8 {[%emt 0:11:49]} 30. f5 {[%emt 0:00:46]} Qf6 {[%emt 0:00:31]} 31. Qe3 {[%emt 0:06:29]} Qh4 {[%emt 0:02:08]} 32. Qg3 {[%emt 0:12:50]} Qg5 {[%emt 0:00:11]} 33. Re3 {[%emt 0:00:58]} Qf6 {[%emt 0:06:22]} 34. Kg2 {[%emt 0:01:14]} gxf5 {[%emt 0:01:17]} 35. gxf5+ {[%emt 0:00:46]} Kh8 {[%emt 0:00:04]} 36. Qf2 {[%emt 0:00:59]} h6 {[%emt 0:06:43]} 37. Qf4 {[%emt 0:01:04]} Rg8+ {[%emt 0:02:35]} 38. Rg3 {[%emt 0:00:44]} Rxg3+ {[%emt 0:01:10]} 39. hxg3 {[%emt 0:00:01]} Rd7 {[%emt 0:00:33]} 40. Qh4 {[%emt 0:00:00]} Qg7 {[%emt 0:00:00]} 41. f6 {[%emt 0:04:27]} Qf8 {[%emt 0:01:23]} 42. Bxc6 {[%emt 0:01:52]} Rd6 {[%emt 0:00:07]} 43. Be4 {[%emt 0:00:27]} Re6 {[%emt 0:00:16]} 44. c5 {[%emt 0:01:00]} Kg8 {[%emt 0:00:04]} 45. c6 {[%emt 0:01:23]} 1-0

[Event "EYCC Open-U18 2019"]
[Site "Bratislava"]
[Date "2019.08.08"]
[Round "7.24"]
[White "Papp, Levente"]
[Black "Nordquelle, Daniel"]
[Result "1/2-1/2"]
[ECO "D00"]
[WhiteElo "2362"]
[BlackElo "2181"]
[Annotator "NA"]
[PlyCount "152"]
[EventDate "2019.08.02"]
[EventType "swiss"]
[EventCountry "SVK"]
[SourceTitle "playchess.com"]
[Source "ChessBase"]
[SourceQuality "1"]
[TimeControl "40/5400+30:1800+30"]

1. d4 {[%emt 0:00:00]} d5 {[%emt 0:00:00]} 2. Bf4 {[%emt 0:00:00]} Nf6 {[%emt 0:00:14]} 3. e3 {[%emt 0:00:00]} c5 {[%emt 0:00:13]} 4. c3 {[%emt 0:00:00]} Nc6 {[%emt 0:00:04]} 5. Nd2 {[%emt 0:00:01]} Qb6 {[%emt 0:02:22]} 6. Qc2 {[%emt 0:00:20]} Bg4 {[%emt 0:02:04]} 7. Ngf3 {[%emt 0:04:11]} e6 {[%emt 0:00:26]} 8. dxc5 {[%emt 0:08:41]} Bxc5 {[%emt 0:00:33]} 9. Bd3 {[%emt 0:00:05]} O-O {[%emt 0:07:59]} 10. Bg5 {[%emt 0:08:17]} Bxf3 {[%emt 0:03:47]} 11. gxf3 {[%emt 0:06:30]} Ne5 {[%emt 0:02:40]} 12. Bxf6 {[%emt 0:07:36]} Nxd3+ {[%emt 0:00:06]} 13. Qxd3 {[%emt 0:00:03]} gxf6 {[%emt 0:00:13]} 14. O-O-O {[%emt 0:02:50]} Kh8 {[%emt 0:00:16]} 15. Rhg1 {[%emt 0:01:14]} Rg8 {[%emt 0:01:23]} 16. Rg3 {[%emt 0:02:12]} Be7 {[%emt 0:19:16]} 17. f4 {[%emt 0:17:58]} f5 {[%emt 0:02:21]} 18. f3 {[%emt 0:01:41]} Bh4 {[%emt 0:12:02]} 19. Rxg8+ {[%emt 0:09:19]} Rxg8 {[%emt 0:00:33]} 20. e4 {[%emt 0:00:04]} dxe4 {[%emt 0:13:23]} 21. fxe4 {[%emt 0:01:31]} fxe4 {[%emt 0:00:13]} 22. Qxe4 {[%emt 0:00:29]} Bf6 {[%emt 0:01:00]} 23. Nc4 {[%emt 0:06:24]} Qf2 {[%emt 0:09:50]} 24. Rd2 {[%emt 0:02:32]} Qf1+ {[%emt 0:00:41]} 25. Kc2 {[%emt 0:00:55]} Rg1 {[%emt 0:00:50]} 26. Kb3 {[%emt 0:04:36]} Rg4 {[%emt 0:01:13]} 27. Qxb7 {[%emt 0:00:31]} Qxf4 {[%emt 0:00:35]} 28. Qc6 {[%emt 0:01:24]} Qb8+ {[%emt 0:06:41]} 29. Kc2 {[%emt 0:00:18]} Qf4 {[%emt 0:02:56]} 30. Kb3 {[%emt 0:10:56]} Qb8+ {[%emt 0:00:07]} 31. Ka3 {[%emt 0:01:16]} Be7+ {[%emt 0:00:11]} 32. b4 {[%emt 0:00:14]} a5 {[%emt 0:00:17]} 33. Rd7 {[%emt 0:01:35]} Bxb4+ {[%emt 0:03:55]} 34. Kb3 {[%emt 0:00:51]} a4+ {[%emt 0:02:48]} 35. Kc2 {[%emt 0:00:03]} Bf8 {[%emt 0:01:04]} 36. Rxf7 {[%emt 0:02:23]} Qxh2+ {[%emt 0:00:05]} 37. Nd2 {[%emt 0:00:08]} Bh6 {[%emt 0:00:59]} 38. Rd7 {[%emt 0:00:25]} Bxd2 {[%emt 0:03:49]} 39. Rxd2 {[%emt 0:00:57]} Qe5 {[%emt 0:00:05]} 40. Rd8+ {[%emt 0:00:00]} Kg7 {[%emt 0:00:00]} 41. Qb7+ {[%emt 0:12:43]} Kh6 {[%emt 0:03:47]} 42. Qh1+ {[%emt 0:06:58]} Qh5 {[%emt 0:00:31]} 43. Qxh5+ {[%emt 0:01:42]} Kxh5 {[%emt 0:00:15]} 44. Rd6 {[%emt 0:00:30]} Rg2+ {[%emt 0:07:29]} 45. Kd3 {[%emt 0:03:08]} Rxa2 {[%emt 0:00:06]} 46. Rxe6 {[%emt 0:00:03]} Kg5 {[%emt 0:07:33]} 47. Re5+ {[%emt 0:00:47]} Kg4 {[%emt 0:00:18]} 48. Re4+ {[%emt 0:00:08]} Kf5 {[%emt 0:02:23]} 49. Rh4 {[%emt 0:00:25]} Kg6 {[%emt 0:00:07]} 50. Rg4+ {[%emt 0:02:51]} Kh5 {[%emt 0:00:02]} 51. Rg1 {[%emt 0:00:13]} a3 {[%emt 0:01:55]} 52. Rh1+ {[%emt 0:01:15]} Kg6 {[%emt 0:00:05]} 53. Rg1+ {[%emt 0:00:04]} Kf6 {[%emt 0:00:12]} 54. Rh1 {[%emt 0:00:03]} Kg7 {[%emt 0:00:08]} 55. Rg1+ {[%emt 0:00:05]} Kh8 {[%emt 0:01:12]} 56. c4 {[%emt 0:00:21]} Rb2 {[%emt 0:04:40]} 57. Kc3 {[%emt 0:00:25]} Rb8 {[%emt 0:00:53]} 58. c5 {[%emt 0:03:42]} a2 {[%emt 0:01:08]} 59. Ra1 {[%emt 0:00:04]} Ra8 {[%emt 0:00:18]} 60. Kd4 {[%emt 0:00:26]} h5 {[%emt 0:01:25]} 61. c6 {[%emt 0:00:36]} Kg7 {[%emt 0:02:55]} 62. Kd5 {[%emt 0:00:52]} h4 {[%emt 0:01:11]} 63. c7 {[%emt 0:00:11]} Kf6 {[%emt 0:04:06]} 64. Rxa2 {[%emt 0:01:01]} Rc8 {[%emt 0:00:45]} 65. Kc6 {[%emt 0:00:57]} Kg5 {[%emt 0:00:15]} 66. Kd7 {[%emt 0:01:25]} Rh8 {[%emt 0:00:47]} 67. c8=Q {[%emt 0:02:32]} Rxc8 {[%emt 0:00:06]} 68. Kxc8 {[%emt 0:00:05]} h3 {[%emt 0:00:14]} 69. Kd7 {[%emt 0:00:13]} Kg4 {[%emt 0:00:18]} 70. Ke6 {[%emt 0:00:20]} Kg3 {[%emt 0:00:24]} 71. Ra3+ {[%emt 0:00:09]} Kg2 {[%emt 0:00:21]} 72. Kf5 {[%emt 0:00:59]} h2 {[%emt 0:00:08]} 73. Ra2+ {[%emt 0:00:07]} Kg1 {[%emt 0:00:18]} 74. Kg4 {[%emt 0:00:33]} h1=Q {[%emt 0:00:10]} 75. Ra1+ {[%emt 0:00:05]} Kg2 {[%emt 0:00:12]} 76. Rxh1 {[%emt 0:00:03]} Kxh1 1/2-1/2